Cogmind - Beta 16.1 @@@ ROGUE MODE // 2026.02.14 @ 20:01:04 Player: Lintence Result: Self-destructed Performance ------------- Evolutions (1) 500 Regions Visited (2) 400 Robots Destroyed (16) 80 Value Destroyed (315) 315 Prototype IDs (0) 0 Alien Tech Used (0) 0 Bonus (0) 0 TOTAL SCORE: 1295 Bonus ------- None Cogmind --------- Core Integrity 352/400 Matter 170/300 Energy 160/160 System Corruption 0% Temperature Cool (0) Movement Walking (110) Location -9/Materials Parts ------- > --- POWER (1) -------- Light Nuclear Core > --- PROPULSION (3) --- Aluminum Leg Aluminum Leg Improved Aluminum Leg > --- UTILITY (3) ------ Medium Storage Unit Sensor Array Signal Interpreter > --- WEAPON (2) ------- Heavy EM Pulse Gun Heavy Assault Rifle > --- INVENTORY (10) --- Ion Engine Ion Engine Aluminum Leg Hover Unit Improved Hover Unit Improved Heat Sink Small Storage Unit Grenade Launcher Peak State ------------ > --- POWER ------------ Light Nuclear Core > --- PROPULSION ------- Aluminum Leg Aluminum Leg Improved Aluminum Leg > --- UTILITY ---------- Medium Storage Unit Targeting Computer Targeting Computer > --- WEAPON ----------- Heavy EM Pulse Gun Heavy Assault Rifle > --- INVENTORY -------- Ion Engine Ion Engine Aluminum Leg Hover Unit Improved Hover Unit Improved Heat Sink Small Storage Unit Signal Interpreter Grenade Launcher [Rating: 15] Favorites ----------- Power Ion Engine Engine Ion Engine Power Core Light Nuclear Core Propulsion Aluminum Leg Leg Aluminum Leg Utility Medium Storage Unit Device Seismic Detector Storage Medium Storage Unit Processor Targeting Computer Weapon Heavy EM Pulse Gun Energy Gun Heavy EM Pulse Gun Ballistic Gun Light Assault Rifle Launcher Grenade Launcher Build | -11 -10 -9 ------- Run | Yrd Mat Mat Slots Evolved 2 | . . 2 Power . | . . . Propulsion 1 | . . 1 Utility 1 | . . 1 Weapon . | . . . Parts Attached 23 | 7 5 11 Power 2 | 1 . 1 Engine 1 | 1 . . Core 1 | . . 1 Reactor . | . . . Propulsion 4 | 2 1 1 Treads . | . . . Leg 4 | 2 1 1 Wheel . | . . . Hover . | . . . Flight . | . . . Utility 8 | 2 2 4 Device 3 | 1 1 1 Storage 2 | 1 1 . Processor 3 | . . 3 Hackware . | . . . Protection . | . . . Artifact . | . . . Weapon 9 | 2 2 5 Energy Gun 6 | 1 1 4 Energy Cannon . | . . . Ballistic Gun 2 | 1 . 1 Ballistic Cannon . | . . . Launcher 1 | . 1 . Special Weapon . | . . . Impact Weapon . | . . . Slashing Weapon . | . . . Piercing Weapon . | . . . Special Melee Weapon . | . . . Unidentified Prototypes . | . . . Parts Lost 3 | . . 3 Power . | . . . Propulsion . | . . . Utility . | . . . Weapon 3 | . . 3 Highest Loss Streak 2 | . . 2 To Critical Strikes . | . . . Average Backups 5 | 1 3 8 Power 1 | . 1 1 Propulsion . | . . 1 Utility 1 | . 1 2 Weapon 1 | . 1 2 Tool/Special . | . . . Unused Backups 6 | . . 6 Power 1 | . . 1 Propulsion 4 | . . 4 Utility 1 | . . 1 Weapon . | . . . Tool/Special . | . . . Average Slot Usage (%) 95 | . 100 91 Engine 8 | . 14 3 Core 4 | . . 7 Leg 30 | . 28 33 Device 8 | . 14 3 Storage 12 | . 14 11 Processor 8 | . . 15 Energy Gun 18 | . 24 13 Launcher 2 | . 3 2 Peak Build Rating 15 | 7 7 15 Average Rating 8 | 5 7 12 On Entrance 4 | . 7 7 Avg Prop Armor Cover (%) . | . . . Naked Turns . | . . . Heaviest Build 22 | 14 21 22 Greatest Support 33 | 20 20 33 Greatest Overweight (x) 1 | 1 1 . Average Overweight (x) . | . . . Largest Inventory Capacity 10 | 8 10 10 Average Capacity 9 | 7 9 10 Most Carried 10 | 2 6 10 Average Carried 5 | 1 3 8 Final Capacity 10 | 8 10 10 Final Carried 8 | 2 6 8 Class Distribution -------------------- 100% | Mutant Dominant Class ---------------- Mutant | -10/Materials Mutant | -9/Materials Resources | -11 -10 -9 ----------- Run | Yrd Mat Mat Matter Collected 359 | 172 8 179 Remotely . | . . . Salvage Created 551 | 157 32 362 Parts 36 | 8 5 23 Haulers Intercepted 1 | . 1 . Recyclers Shooed 2 | 1 1 . Parts Field Recycled . | . . . Retrieved Matter . | . . . Parts Self-Destructed . | . . . Prevented . | . . . Parts Restored . | . . . Kills | -11 -10 -9 ------- Run | Yrd Mat Mat Combat Hostiles Destroyed 9 | . 3 6 Guns 5 | . . 5 AOE 4 | . 3 1 Classes Destroyed 8 | 2 2 4 Worker 1 | . . 1 Tunneler 3 | 3 . . Hauler 1 | . 1 . Recycler 1 | 1 . . Operator 1 | . . 1 Swarmer 3 | . 3 . Grunt 4 | . . 4 Sentry 2 | . . 2 Best Kill Streak 4 | 2 4 3 Combat Bots Only 3 | . 3 3 Max Kills in Single Turn 2 | 1 2 1 Gunslinging . | . . . Exploded 2 | . 2 1 Melee . | . . . Uniques/NPCs Destroyed . | . . . Combat | -11 -10 -9 -------- Run | Yrd Mat Mat Hostile Shots Fired 39 | . 7 32 Missed 9 | . 2 7 Hits 30 | . 5 25 Projectile 30 | . 5 25 Critical Strikes 1 | . . 1 Damage Taken 479 | . 78 401 Core 54 | . 6 48 Absorbed by Shields . | . . . Core Remaining (%) 98 | 100 97 . Volleys Fired 40 | 18 5 17 Largest 2 | 2 2 2 Hottest 90 | 60 90 90 Shots Fired 69 | 36 6 27 Gun 65 | 36 2 27 Cannon . | . . . Launcher 4 | . 4 . Special . | . . . Kinetic 20 | 18 . 2 Thermal 1 | . 1 . Explosive 4 | . 4 . Electromagnetic 44 | 18 1 25 Robot Hit Streak 15 | 5 1 15 Robot Miss Streak 3 | 3 2 1 Penetration Max . | . . . Secondary Targets 1 | . . 1 Max Gunslinging Chain 1 | . . 1 Shots Hit Robots 46 | 20 1 25 Core Hits 26 | 7 7 12 Critical Kills . | . . . Critical Parts Destroyed . | . . . Critical Strikes . | . . . Melee Attacks . | . . . Impact . | . . . Slashing . | . . . Piercing . | . . . Sneak Attacks . | . . . Combat Hostiles . | . . . Follow-up Attacks . | . . . Damage Inflicted 894 | 251 224 419 Guns 600 | 222 . 378 Cannons . | . . . Explosions 294 | 29 224 41 Melee . | . . . Ramming . | . . . Kinetic 123 | 93 . 30 Thermal 70 | 29 . 41 Explosive 224 | . 224 . Electromagnetic 477 | 129 . 348 Impact . | . . . Slashing . | . . . Piercing . | . . . Highest Corruption . | . . . Average Corruption . | . . . Corruption Purged . | . . . Corruption Blocked . | . . . Overload Shots . | . . . Overflow Damage 16 | . 15 1 Projectiles . | . . . Explosions 16 | . 15 1 Melee . | . . . Knockbacks . | . . . Impact . | . . . Kinetic . | . . . Secondary . | . . . Self-Inflicted Damage 76 | . 40 36 Shots 3 | . 2 1 Rammed . | . . . Targets Rammed . | . . . Kicked . | . . . Crushed . | . . . Highest Temperature 173 | 40 30 173 Average Temperature 42 | 22 18 60 Received Heat Transfer 138 | . . 138 Siege Activations . | . . . Martial Activations . | . . . Shielding Activations . | . . . Robots Disrupted . | . . . Combat Hostiles . | . . . Robots Corrupted . | . . . Combat Hostiles . | . . . Parts Fried 4 | 1 . 3 Impact Corruptions . | . . . Robots Melted . | . . . Combat Hostiles . | . . . Parts Melted . | . . . Heat Transferred 50 | . . 50 Parts Sabotaged . | . . . Parts Stolen . | . . . Parts Stripped . | . . . Power Chain Reactions 2 | 1 . 1 Alert | -11 -10 -9 ------- Run | Yrd Mat Mat Maximum Alert Level . | . . . Low Security (%) 100 | 100 100 100 Level 1 . | . . . Level 2 . | . . . Level 3 . | . . . Level 4 . | . . . Level 5 . | . . . High Security . | . . . Max Security . | . . . Peak Influence 102 | 5 102 61 Initial 34 | . . 34 Average 21 | 1 18 32 Influence Increases 299 | 20 102 177 Destroy 0b10 Robot/C 180 | . 60 120 Destroy 0b10 Robot/NC 35 | 20 5 10 Destroy Leader 52 | . 12 40 Destroy Structure 32 | . 25 7 Influence Decreases 248 | 20 20 208 Entered New Map 48 | . . 48 Time Decay 170 | 20 20 130 Lost Part 30 | . . 30 Squads Dispatched 2 | . . 2 Investigation 1 | . . 1 Extermination . | . . . Reinforcement 1 | . . 1 Assault . | . . . Garrison . | . . . Intercept . | . . . Searches Triggered . | . . . Construction Impeded . | . . . Haulers Reinforced . | . . . Active Scanning Responses . | . . . Cargo Convoy Interrupts . | . . . Stealth | -11 -10 -9 --------- Run | Yrd Mat Mat Distress Signals 1 | . . 1 Communications Jammed . | . . . Distress Signals . | . . . Times Spotted 13 | . 4 9 Peak Tracking Total 5 | . 3 5 Tactical Retreats . | . . . Traps | -11 -10 -9 ------- Run | Yrd Mat Mat Traps Triggered 1 | . . 1 Indirectly . | . . . Trap Hack Attempts . | . . . Triggered . | . . . Disarmed . | . . . Reprogrammed . | . . . Reused . | . . . Traps Extracted . | . . . Installed . | . . . Triggered . | . . . Machines | -11 -10 -9 ---------- Run | Yrd Mat Mat Machines Disabled . | . . . Max in Single Turn . | . . . Machines Repaired . | . . . Machines Dismantled . | . . . Machines Sabotaged . | . . . Overloaded Fab Kills . | . . . Hacking | -11 -10 -9 --------- Run | Yrd Mat Mat Machines Accessed 2 | . 1 1 Terminals 1 | . 1 . Fabricators . | . . . Repair Stations . | . . . Recycling Units . | . . . Scanalyzers 1 | . . 1 Garrison Access . | . . . Total Hacks 4 | . 1 3 Successful 1 | . . 1 Failed 2 | . 1 1 Catastrophic 1 | . 1 . Database Lockouts 1 | . . 1 Manual 1 | . 1 . Terminals 1 | . 1 . Fabricators . | . . . Repair Stations . | . . . Recycling Units . | . . . Scanalyzers 3 | . . 3 Garrison Access . | . . . Terminal Hacks . | . . . Fabricator Hacks . | . . . Repair Station Hacks . | . . . Recycling Unit Hacks . | . . . Scanalyzer 1 | . . 1 Retrieve Study 1 | . . 1 Garrison Access Hacks . | . . . Unauthorized Hacks . | . . . Terminals . | . . . Fabricators . | . . . Repair Stations . | . . . Recycling Units . | . . . Scanalyzers . | . . . Garrison Access . | . . . Data Cores Recovered . | . . . Used . | . . . Hacking Detections . | . . . Full Trace Events . | . . . Feedback Events . | . . . Feedback Blocked . | . . . Robot Schematics Acquired . | . . . Robots Built . | . . . Authchips . | . . . Time . | . . . Total Robot Build Rating . | . . . Part Schematics Acquired . | . . . Parts Built . | . . . Authchips . | . . . Time . | . . . Total Part Build Rating . | . . . Part Studies Acquired 1 | . . 1 Parts Repaired . | . . . Time . | . . . Parts Recycled . | . . . Recycled Matter . | . . . Retrieved Matter . | . . . Retrieved Components . | . . . Parts Scanalyzed . | . . . Part Schematics Acquired . | . . . Parts Damaged . | . . . Bothacking | -11 -10 -9 ------------ Run | Yrd Mat Mat Used RIF Installer . | . . . Robots Hacked . | . . . Non-combat . | . . . Combat . | . . . Robot Hacks Applied . | . . . Relay Couplers Released . | . . . Fabnet Peak Effective % . | . . . Robots Rewired . | . . . Allies Hacked . | . . . Hacks Repelled . | . . . Allies | -11 -10 -9 -------- Run | Yrd Mat Mat Total Allies . | . . . Largest Group . | . . . Highest-Rated Group . | . . . Highest-Rated Ally . | . . . Total Orders . | . . . Ally Attacks . | . . . Total Damage . | . . . Kills . | . . . Allies Corrupted . | . . . Allies Melted . | . . . Intel | -11 -10 -9 ------- Run | Yrd Mat Mat Active Infowar (turns) 325 | 21 214 90 Sensors 23 | . . 23 Seismic 302 | 21 214 67 Robot Analysis Total . | . . . Derelict Logs Recovered . | . . . Drone Launches . | . . . Drone Recoveries . | . . . Exploration | -11 -10 -9 ------------- Run | Yrd Mat Mat Turns Passed 615 | 123 214 278 Spaces Moved 352 | 52 150 150 Core 3 | 3 . . Treads . | . . . Legs 349 | 49 150 150 Wheels . | . . . Hover . | . . . Flight . | . . . Fastest Speed 50 | 50 120 105 Average Speed 118 | 117 129 108 Slowest Speed 190 | 190 190 120 Overloaded Moves . | . . . Propulsion Burnouts . | . . . Robots Hopped . | . . . Potential Cave-ins . | . . . Cave-ins Triggered . | . . . Exploration Rate (%) 19 | 3 38 16 Regions Visited 2 Branch Regions . Pre-discovered Areas . | . . . Known Exits Taken . | . . . Unknown Exits Taken 2 | 1 1 . Scrap Searched . | . . . Spaces Dug . | . . . Terrain Destroyed 36 | 4 27 5 Melee . | . . . Projectile . | . . . AOE 36 | 4 27 5 Terrain Rammed . | . . . Walls Destroyed . | . . . Machines Disabled . | . . . Actions | -11 -10 -9 --------- Run | Yrd Mat Mat Total 478 | 78 162 238 Wait 43 | . . 43 Move 350 | 51 149 150 Hop . | . . . Pick Up 12 | 2 2 8 Fast Attach 12 | 7 . 5 Attach 3 | . . 3 Detach 2 | . . 2 Swap 9 | . 5 4 Drop 7 | . 1 6 Fire 40 | 18 5 17 Melee . | . . . Ram . | . . . Kick . | . . . Crush . | . . . Escape Stasis . | . . . Rewire . | . . . Trap . | . . . Miscellaneous . | . . . Route ------- -11/Scrapyard -10/Materials -9/Materials History --------- Turn | Location | Event 25 | -11/Scrapyard | Discovered new exit (range 16) 124 | -11/Scrapyard | Entered Materials 310 | -10/Materials | Build established: Mutant 333 | -10/Materials | Discovered new exit (range 3) 338 | -10/Materials | Entered another Materials area 338 | -9/Materials | Evolved 2 slots: Propulsion x1, Utility x1 361 | -9/Materials | Central database locked down 616 | -9/Materials | Self-destructed Last Messages --------------- 00481_ Acquired Imp. Hover Unit. 00482_ U-05 Engineer lays Concrete. 00488_ Dropped Seismic Detector. 00488_ U-05 Engineer builds a Wall. 00488_ Acquired Corrupted Imp. Heat Sink. 00492_ U-05 Engineer lays Concrete. 00499_ U-05 Engineer builds a Door. 00503_ U-05 Engineer lays Concrete. 00517_ Dropped Aluminum Leg+. 00553_ Y-45 Defender destroyed. 00555_ Acquired 60 matter. 00563_ Hvy. EM Pulse Gun destroyed. 00567_ G-34 Mercenary destroyed. 00571_ Acquired Hvy. Assault Rifle. 00577_ Acquired Sensor Array. 00587_ G-34 Mercenary misfires. 00587_ G-34 Mercenary destroyed. 00593_ Discarded Targeting Computer. 00602_ Connecting with Scanalyzer... 00616_ W-16 Scout sends out distress signal. Map ----- +----------------------------------------------------+ | ?????????????????????????????????????? | | ?????????????????????????????????????? | | ?????????????????????????????????????? | | ?????????????????????????????????????? | | ?????????????????????????????????????? | | ?????????????????????????????????????? | | ?????????????????????????????????????? | | ?????????????????????????????????????? | | ?????????????????????????????????????? | | ???????????????????????###???????????? | | ?????????????????????### #######?????? | | ?????????????????????# #?????? | | ?????????????????????#"S """ #?????? | | ?????????????????????#""" """ #?????? | | ?????????????????????# "" """ #?????? | | ?????????????????????# #?????? | | ?????????????????????# // #?????? | | ????????????????? ??# [/[ ! #?????? | | ????????????????? ??# !=%* #?????? | | ????????????????#+#??######+########## | | ???????????????? ??????+ #[= # | | ???????????????? #??????#*!+%! ! # | | ???????????????+ #??????#[!#* # | | ???????????????# #??????# #= """ # | | ??????????###### #####+## # """ # | | ??????????# @ #! """ # | | ??????????# w # """ # | | ??????????# + = """ # | | ########### # # | | ########## | | #?????? | | [ g ! "" #?????? | | ########### !!! Y" ######+####????? | | ########""# !! "" #??# #????? | | ## %%#[ = #### """ #????? | | ## *!+= + """ #????? | | ## [# ######## """ #????? | | ## [#+"###+######??# #????? | | ## # * #??# "T" |#????? | | ## # #??########????? | | ## # #??????????????? | | ## # #??????????????? | | ## # #??????????????? | | ?########## #??????????????? | | ??????????# #??????????????? | | ??????????#############??????????????? | | | | | | | | | +----------------------------------------------------+ Best States ------------- Heat Dissipation 28 Energy Generation 14 Energy Capacity 250 Matter Stores 211 Matter Capacity 300 Sight Range 16 Robot Scan Range 14 Terrain Scan Density 10 Evasion (%) 55 Targeting Accuracy 10 Item Schematics ----------------- None Robot Schematics ------------------ None Fabricated ------------ Nothing Repaired ---------- Nothing Studied --------- Aluminum Leg | -9/Materials | Hacked Alien Tech Used ----------------- None Achievements -------------- None Challenges ------------ None Game ------ Seed FocalDamperRedistributor Manual? 0 Play Time 00:07:58 Cumulative 77.1 hours Start 2026.02.14 @ 19:53:05 End 2026.02.14 @ 20:01:04 Sessions 1 Manual Loads 0 Difficulty Rogue Special Mode None Game No. 148 Rogue 148 Adventurer 0 Explorer 0 Win Type - Total 1 Types 1/0/0/0/0/0/0/0/0/0 Lore% 25 Gallery% 35 Achievement% 25 Wizard Run 0 Options --------- Layout 1 ASCII 0 Keyboard 0 Movement Mouse Keybinds 0 Fullscreen 2 Font 20/X11 Map View 50x35 Zoom Use 0% Tactical HUD 1 Map Filters NONE Filters NONE Steam 1 RUN: 6e6971e5-8353-460b-a587-59cad5535c9d